[Event "Early-Titled-Tuesday-Blitz-September-26-2023"]
[Site "Chess.com"]
[Date "2023.09.26"]
[Round "10"]
[White "Elprofessor21"]
[Black "BogdanDeac"]
[Result "1-0"]
[WhiteElo "2661"]
[BlackElo "2929"]
[TimeControl "180+1"]
[EndTime "9:54:36 PDT"]
[Termination "Elprofessor21 won by resignation"]

1. e4 {[%clk 0:02:58.8]} 1... c6 {[%clk 0:02:59.4]} 2. Nf3 {[%clk 0:02:57.5]}
2... d5 {[%clk 0:03:00.3]} 3. d3 {[%clk 0:02:57.9]} 3... Nd7 {[%clk 0:02:56.1]}
4. g3 {[%clk 0:02:47]} 4... dxe4 {[%clk 0:02:52.9]} 5. dxe4 {[%clk 0:02:47.3]}
5... e5 {[%clk 0:02:53]} 6. Bg2 {[%clk 0:02:43.2]} 6... Ngf6 {[%clk 0:02:53.5]}
7. O-O {[%clk 0:02:42.9]} 7... Bc5 {[%clk 0:02:52.9]} 8. Qe2 {[%clk 0:02:40.8]}
8... O-O {[%clk 0:02:52.6]} 9. Nbd2 {[%clk 0:02:39.1]} 9... a5 {[%clk
0:02:52.1]} 10. Nb3 {[%clk 0:02:36]} 10... Be7 {[%clk 0:02:36.1]} 11. a4 {[%clk
0:02:31.8]} 11... b6 {[%clk 0:02:36.1]} 12. Rd1 {[%clk 0:02:31.9]} 12... Ba6
{[%clk 0:02:36.1]} 13. Qe1 {[%clk 0:02:32.4]} 13... Qc7 {[%clk 0:02:36.2]} 14.
Nh4 {[%clk 0:02:33]} 14... g6 {[%clk 0:02:35.8]} 15. Bh6 {[%clk 0:02:30.5]}
15... Rfe8 {[%clk 0:02:34.3]} 16. Bg5 {[%clk 0:02:23.2]} 16... Nf8 {[%clk
0:02:32.5]} 17. Bf1 {[%clk 0:02:15.3]} 17... Bxf1 {[%clk 0:02:19.9]} 18. Kxf1
{[%clk 0:02:15.2]} 18... Ne6 {[%clk 0:02:16.6]} 19. Bxf6 {[%clk 0:02:02.1]}
19... Bxf6 {[%clk 0:02:17.5]} 20. Nf3 {[%clk 0:02:02]} 20... b5 {[%clk
0:01:43.8]} 21. Kg2 {[%clk 0:01:54.9]} 21... Reb8 {[%clk 0:01:32.5]} 22. Qc3
{[%clk 0:01:33.1]} 22... Kg7 {[%clk 0:01:20]} 23. axb5 {[%clk 0:01:30.5]} 23...
Rxb5 {[%clk 0:01:19.4]} 24. Ra4 {[%clk 0:01:26.1]} 24... Nd4 {[%clk 0:00:44.8]}
25. Nbxd4 {[%clk 0:01:07.9]} 25... exd4 {[%clk 0:00:43.3]} 26. Nxd4 {[%clk
0:01:08.1]} 26... Qb6 {[%clk 0:00:40.5]} 27. Ne6+ {[%clk 0:00:57.6]} 27... fxe6
{[%clk 0:00:26]} 28. Rd7+ {[%clk 0:00:57.4]} 1-0

[Event "Early-Titled-Tuesday-Blitz-September-26-2023"]
[Site "Chess.com"]
[Date "2023.09.26"]
[Round "10"]
[White "AnaKuchava"]
[Black "borocotoajua"]
[Result "0-1"]
[WhiteElo "2263"]
[BlackElo "2563"]
[TimeControl "180+1"]
[EndTime "9:54:36 PDT"]
[Termination "borocotoajua won on time"]

1. d4 {[%clk 0:03:00.9]} 1... Nf6 {[%clk 0:02:57.4]} 2. Nf3 {[%clk 0:02:58.6]}
2... g6 {[%clk 0:02:57.6]} 3. c4 {[%clk 0:02:56.3]} 3... Bg7 {[%clk 0:02:57.9]}
4. Nc3 {[%clk 0:02:54.5]} 4... d6 {[%clk 0:02:58.1]} 5. e4 {[%clk 0:02:53.8]}
5... O-O {[%clk 0:02:58.6]} 6. Be2 {[%clk 0:02:51.2]} 6... e5 {[%clk 0:02:59.1]}
7. O-O {[%clk 0:02:50.3]} 7... Nc6 {[%clk 0:02:59.3]} 8. Be3 {[%clk 0:02:40.8]}
8... Ng4 {[%clk 0:02:58.6]} 9. Bg5 {[%clk 0:02:37.9]} 9... f6 {[%clk 0:02:58.7]}
10. Bc1 {[%clk 0:02:37.9]} 10... f5 {[%clk 0:02:58.5]} 11. d5 {[%clk 0:02:37.4]}
11... Ne7 {[%clk 0:02:53.3]} 12. Ng5 {[%clk 0:02:36.5]} 12... Nf6 {[%clk
0:02:50.1]} 13. exf5 {[%clk 0:02:34.4]} 13... gxf5 {[%clk 0:02:47.6]} 14. f4
{[%clk 0:02:31.5]} 14... Ng6 {[%clk 0:02:43.2]} 15. fxe5 {[%clk 0:01:49.6]}
15... dxe5 {[%clk 0:02:44.1]} 16. Ne6 {[%clk 0:01:39.3]} 16... Bxe6 {[%clk
0:02:42.3]} 17. dxe6 {[%clk 0:01:40.2]} 17... Qe7 {[%clk 0:02:36.1]} 18. Rxf5
{[%clk 0:01:36.9]} 18... Qxe6 {[%clk 0:02:33.1]} 19. Rf1 {[%clk 0:01:31.3]}
19... Rad8 {[%clk 0:02:29]} 20. Qb3 {[%clk 0:01:28.6]} 20... Nf4 {[%clk
0:02:17]} 21. Bxf4 {[%clk 0:01:18.7]} 21... exf4 {[%clk 0:02:16.8]} 22. Bf3
{[%clk 0:01:11.6]} 22... Rd2 {[%clk 0:02:03.7]} 23. Nd5 {[%clk 0:01:00.1]} 23...
Ne4 {[%clk 0:01:35.5]} 24. Bxe4 {[%clk 0:00:17.3]} 24... Qxe4 {[%clk 0:01:36.4]}
25. Qf3 {[%clk 0:00:12.7]} 25... Qd4+ {[%clk 0:01:28.9]} 26. Kh1 {[%clk
0:00:12.2]} 26... c6 {[%clk 0:01:25.8]} 27. Nc3 {[%clk 0:00:03.2]} 27... Rxb2
{[%clk 0:01:23.3]} 0-1

[Event "Early-Titled-Tuesday-Blitz-September-26-2023"]
[Site "Chess.com"]
[Date "2023.09.26"]
[Round "10"]
[White "Shockerlover"]
[Black "maurovargas01"]
[Result "0-1"]
[WhiteElo "1951"]
[BlackElo "1899"]
[TimeControl "180+1"]
[EndTime "9:54:43 PDT"]
[Termination "maurovargas01 won by resignation"]

1. d4 {[%clk 0:03:00.9]} 1... d5 {[%clk 0:02:55.1]} 2. Nf3 {[%clk 0:03:01.8]}
2... Bg4 {[%clk 0:02:51.4]} 3. c4 {[%clk 0:03:02.7]} 3... e6 {[%clk 0:02:50.2]}
4. cxd5 {[%clk 0:02:59.5]} 4... exd5 {[%clk 0:02:46.2]} 5. Nc3 {[%clk
0:02:59.7]} 5... c6 {[%clk 0:02:46]} 6. Bf4 {[%clk 0:02:53.8]} 6... Nf6 {[%clk
0:02:43.5]} 7. e3 {[%clk 0:02:48.7]} 7... Nh5 {[%clk 0:02:23.7]} 8. Bg5 {[%clk
0:02:26.5]} 8... Qd7 {[%clk 0:02:11.4]} 9. Be2 {[%clk 0:02:20.4]} 9... h6 {[%clk
0:02:09.9]} 10. Bh4 {[%clk 0:02:19.4]} 10... g5 {[%clk 0:02:09.1]} 11. Bg3
{[%clk 0:02:12.8]} 11... Nxg3 {[%clk 0:02:08.9]} 12. hxg3 {[%clk 0:02:12.9]}
12... Bg7 {[%clk 0:01:38.6]} 13. Qc2 {[%clk 0:02:03.3]} 13... Bf5 {[%clk
0:01:31]} 14. Bd3 {[%clk 0:02:00.2]} 14... Bxd3 {[%clk 0:01:30.4]} 15. Qxd3
{[%clk 0:02:01.1]} 15... Na6 {[%clk 0:01:30.6]} 16. a3 {[%clk 0:01:59.2]} 16...
O-O-O {[%clk 0:01:19.6]} 17. b4 {[%clk 0:01:42.7]} 17... Nc7 {[%clk 0:00:56.6]}
18. a4 {[%clk 0:01:40.1]} 18... f5 {[%clk 0:00:48.8]} 19. b5 {[%clk 0:01:38.8]}
19... Rhe8 {[%clk 0:00:21.8]} 20. Rc1 {[%clk 0:01:34.3]} 20... f4 {[%clk
0:00:16.4]} 21. gxf4 {[%clk 0:01:31.4]} 21... gxf4 {[%clk 0:00:14.8]} 22. bxc6
{[%clk 0:01:28.9]} 22... bxc6 {[%clk 0:00:12.5]} 23. Qa6+ {[%clk 0:01:28.6]}
23... Nxa6 {[%clk 0:00:12.3]} 24. Nb5 {[%clk 0:01:18.6]} 24... Kb8 {[%clk
0:00:12.1]} 0-1

[Event "Early-Titled-Tuesday-Blitz-September-26-2023"]
[Site "Chess.com"]
[Date "2023.09.26"]
[Round "10"]
[White "kleopl"]
[Black "ZeGood_ZeBad_ZeUgly"]
[Result "1-0"]
[WhiteElo "2464"]
[BlackElo "2311"]
[TimeControl "180+1"]
[EndTime "9:54:46 PDT"]
[Termination "kleopl won by resignation"]

1. e4 {[%clk 0:03:00.9]} 1... c5 {[%clk 0:02:59.5]} 2. Nc3 {[%clk 0:03:00.2]}
2... Nc6 {[%clk 0:02:57.5]} 3. Bb5 {[%clk 0:03:00]} 3... Nd4 {[%clk 0:02:53.5]}
4. Bc4 {[%clk 0:03:00.2]} 4... d6 {[%clk 0:02:50]} 5. Nf3 {[%clk 0:02:58.2]}
5... Bg4 {[%clk 0:02:49.5]} 6. Nxd4 {[%clk 0:02:50.6]} 6... cxd4 {[%clk
0:02:30.8]} 7. Qxg4 {[%clk 0:02:45.3]} 7... Nf6 {[%clk 0:02:27]} 8. Bb5+ {[%clk
0:02:44.7]} 8... Nd7 {[%clk 0:02:25.4]} 9. Ne2 {[%clk 0:02:37.9]} 9... e6 {[%clk
0:02:25.4]} 10. Nxd4 {[%clk 0:02:35]} 10... a6 {[%clk 0:02:25.5]} 11. Nxe6
{[%clk 0:02:28.8]} 11... fxe6 {[%clk 0:02:23.5]} 12. Qxe6+ {[%clk 0:02:28.8]}
12... Be7 {[%clk 0:02:23.7]} 13. Bxd7+ {[%clk 0:02:26.4]} 13... Qxd7 {[%clk
0:02:24.6]} 14. Qxd7+ {[%clk 0:02:26.2]} 14... Kxd7 {[%clk 0:02:25.5]} 15. d4
{[%clk 0:02:26.4]} 15... Bf6 {[%clk 0:02:23.2]} 16. c3 {[%clk 0:02:26.1]} 16...
Rhe8 {[%clk 0:02:23.3]} 17. f3 {[%clk 0:02:24.6]} 17... b5 {[%clk 0:02:23.6]}
18. Kf2 {[%clk 0:02:22]} 18... b4 {[%clk 0:02:23.7]} 19. Be3 {[%clk 0:02:14.2]}
19... Rac8 {[%clk 0:02:22.6]} 20. Rac1 {[%clk 0:02:10.9]} 20... a5 {[%clk
0:02:21.9]} 21. cxb4 {[%clk 0:02:08.8]} 21... axb4 {[%clk 0:02:22.8]} 22. Ke2
{[%clk 0:02:05.7]} 22... Ra8 {[%clk 0:02:21.1]} 23. Rc4 {[%clk 0:01:55.6]} 23...
Reb8 {[%clk 0:02:16.4]} 24. Ra1 {[%clk 0:01:54.5]} 24... g5 {[%clk 0:01:56.1]}
25. Kd3 {[%clk 0:01:48.8]} 25... h5 {[%clk 0:01:51.4]} 26. h3 {[%clk 0:01:45.7]}
26... g4 {[%clk 0:01:45]} 27. hxg4 {[%clk 0:01:43.9]} 27... hxg4 {[%clk
0:01:45.9]} 28. f4 {[%clk 0:01:43.6]} 28... Be7 {[%clk 0:01:42.6]} 29. d5 {[%clk
0:01:41.1]} 29... Bf6 {[%clk 0:01:28.7]} 30. Bd4 {[%clk 0:01:41.1]} 30... Bxd4
{[%clk 0:01:19.3]} 31. Kxd4 {[%clk 0:01:40.7]} 31... Rf8 {[%clk 0:01:19.9]} 32.
g3 {[%clk 0:01:39]} 32... Ra4 {[%clk 0:01:16.6]} 33. b3 {[%clk 0:01:34.6]} 33...
Ra7 {[%clk 0:01:13.5]} 34. Rxb4 {[%clk 0:01:34.4]} 34... Rh8 {[%clk 0:01:14.2]}
35. e5 {[%clk 0:01:26.8]} 35... Rh3 {[%clk 0:01:10.7]} 36. Rg1 {[%clk
0:01:21.9]} 36... Rxa2 {[%clk 0:01:10.3]} 37. Rb7+ {[%clk 0:01:22.1]} 37... Kc8
{[%clk 0:01:10.7]} 38. Rg7 {[%clk 0:01:22.2]} 38... Rd2+ {[%clk 0:01:08]} 39.
Ke4 {[%clk 0:01:22.3]} 39... Rhh2 {[%clk 0:01:00.4]} 40. Rxg4 {[%clk 0:01:20.6]}
40... Rhe2+ {[%clk 0:01:00.5]} 41. Kf5 {[%clk 0:01:19.7]} 41... Rxd5 {[%clk
0:01:00.3]} 42. Rc1+ {[%clk 0:01:15]} 42... Kd8 {[%clk 0:00:56.8]} 43. Rg8+
{[%clk 0:01:13.6]} 43... Kd7 {[%clk 0:00:56.5]} 44. Rg7+ {[%clk 0:01:06.8]}
44... Kd8 {[%clk 0:00:56.3]} 45. Ra1 {[%clk 0:01:06.6]} 1-0

[Event "Early-Titled-Tuesday-Blitz-September-26-2023"]
[Site "Chess.com"]
[Date "2023.09.26"]
[Round "10"]
[White "FGHSMN"]
[Black "Journey_to_GrandMaster_YT"]
[Result "1-0"]
[WhiteElo "2851"]
[BlackElo "2605"]
[TimeControl "180+1"]
[EndTime "9:54:51 PDT"]
[Termination "FGHSMN won by resignation"]

1. b3 {[%clk 0:02:59.7]} 1... d6 {[%clk 0:03:00.9]} 2. Bb2 {[%clk 0:02:59.2]}
2... e5 {[%clk 0:02:59.6]} 3. c4 {[%clk 0:03:00.1]} 3... Nf6 {[%clk 0:02:59.5]}
4. e3 {[%clk 0:02:59.9]} 4... Be7 {[%clk 0:02:59]} 5. Nf3 {[%clk 0:03:00.5]}
5... Nbd7 {[%clk 0:02:59.6]} 6. Nc3 {[%clk 0:03:00]} 6... c6 {[%clk 0:02:59.9]}
7. d4 {[%clk 0:03:00.5]} 7... e4 {[%clk 0:03:00.2]} 8. Nd2 {[%clk 0:02:59]} 8...
d5 {[%clk 0:03:01.1]} 9. Be2 {[%clk 0:02:58.9]} 9... O-O {[%clk 0:03:01]} 10.
Qc2 {[%clk 0:02:58.9]} 10... Re8 {[%clk 0:02:57.7]} 11. g4 {[%clk 0:02:58.6]}
11... h6 {[%clk 0:02:49]} 12. Rg1 {[%clk 0:02:58.2]} 12... g5 {[%clk 0:02:46.5]}
13. O-O-O {[%clk 0:02:53.8]} 13... Nf8 {[%clk 0:02:45.9]} 14. Nf1 {[%clk
0:02:40.3]} 14... Ng6 {[%clk 0:02:43.8]} 15. h3 {[%clk 0:02:37]} 15... a6 {[%clk
0:02:41.6]} 16. Ng3 {[%clk 0:02:36.5]} 16... b5 {[%clk 0:02:42.1]} 17. c5 {[%clk
0:02:34.5]} 17... a5 {[%clk 0:02:36]} 18. f3 {[%clk 0:02:23.4]} 18... b4 {[%clk
0:02:21.4]} 19. Na4 {[%clk 0:02:22.8]} 19... exf3 {[%clk 0:02:19.1]} 20. Bxf3
{[%clk 0:02:23.7]} 20... Ba6 {[%clk 0:02:18.9]} 21. Nf5 {[%clk 0:02:22.5]} 21...
Bf8 {[%clk 0:02:19.1]} 22. Nb6 {[%clk 0:02:19.1]} 22... Ra7 {[%clk 0:02:18.6]}
23. h4 {[%clk 0:02:18.6]} 23... Ne4 {[%clk 0:01:51.6]} 24. h5 {[%clk 0:02:17.1]}
24... Ne7 {[%clk 0:01:50.3]} 25. Bxe4 {[%clk 0:02:15]} 25... dxe4 {[%clk
0:01:49.9]} 26. Nd6 {[%clk 0:02:15.6]} 26... Nd5 {[%clk 0:01:41.4]} 27. Nxe8
{[%clk 0:02:08.9]} 27... Nxe3 {[%clk 0:01:37.5]} 28. Qxe4 {[%clk 0:02:06.7]}
28... Nxd1 {[%clk 0:01:20.8]} 29. Rxd1 {[%clk 0:02:07.6]} 29... Qe7 {[%clk
0:00:55.9]} 30. Re1 {[%clk 0:02:04.7]} 30... Qxe4 {[%clk 0:00:49.6]} 31. Nf6+
{[%clk 0:02:03.8]} 31... Kh8 {[%clk 0:00:46.7]} 32. Nxe4 {[%clk 0:02:04.7]}
32... Bg7 {[%clk 0:00:45.1]} 33. d5 {[%clk 0:02:03.3]} 33... cxd5 {[%clk
0:00:37.2]} 34. Nf6 {[%clk 0:02:01.3]} 34... Bb5 {[%clk 0:00:31.6]} 35. Nbxd5
{[%clk 0:01:56.8]} 35... a4 {[%clk 0:00:28.5]} 36. Nxb4 {[%clk 0:01:54]} 36...
axb3 {[%clk 0:00:28.3]} 37. axb3 {[%clk 0:01:54.9]} 37... Rc7 {[%clk 0:00:28.4]}
38. Bd4 {[%clk 0:01:52.2]} 38... Rc8 {[%clk 0:00:18.1]} 39. Kb2 {[%clk
0:01:49.4]} 39... Bd7 {[%clk 0:00:16.7]} 40. Bc3 {[%clk 0:01:45.8]} 40... Be6
{[%clk 0:00:15.8]} 41. c6 {[%clk 0:01:44.6]} 41... Rc7 {[%clk 0:00:12]} 42. Ne8
{[%clk 0:01:43]} 42... Bxc3+ {[%clk 0:00:10.8]} 43. Kxc3 {[%clk 0:01:43.9]}
43... Rc8 {[%clk 0:00:11.3]} 44. Nd6 {[%clk 0:01:44.3]} 44... Rd8 {[%clk
0:00:10.4]} 45. Rxe6 {[%clk 0:01:42.9]} 45... fxe6 {[%clk 0:00:08.8]} 46. c7
{[%clk 0:01:43.8]} 1-0

[Event "Early-Titled-Tuesday-Blitz-September-26-2023"]
[Site "Chess.com"]
[Date "2023.09.26"]
[Round "10"]
[White "Katuducha"]
[Black "ajedrezhoy"]
[Result "1-0"]
[WhiteElo "2214"]
[BlackElo "2359"]
[TimeControl "180+1"]
[EndTime "9:54:54 PDT"]
[Termination "Katuducha won on time"]

1. e4 {[%clk 0:03:00.9]} 1... Nf6 {[%clk 0:02:56.8]} 2. e5 {[%clk 0:03:00.3]}
2... Nd5 {[%clk 0:02:56.5]} 3. Nc3 {[%clk 0:03:00.8]} 3... Nxc3 {[%clk
0:02:53.4]} 4. dxc3 {[%clk 0:02:59.6]} 4... d6 {[%clk 0:02:53.6]} 5. Bc4 {[%clk
0:02:58.5]} 5... Nc6 {[%clk 0:02:49.1]} 6. Nf3 {[%clk 0:02:57.3]} 6... dxe5
{[%clk 0:02:48.8]} 7. Qxd8+ {[%clk 0:02:54.1]} 7... Nxd8 {[%clk 0:02:48.8]} 8.
Nxe5 {[%clk 0:02:53.3]} 8... f6 {[%clk 0:02:49.1]} 9. Nf3 {[%clk 0:02:51.8]}
9... e5 {[%clk 0:02:49.2]} 10. Be3 {[%clk 0:02:51.8]} 10... Be6 {[%clk 0:02:49]}
11. Nd2 {[%clk 0:02:49.1]} 11... Be7 {[%clk 0:02:31.5]} 12. O-O-O {[%clk
0:02:48]} 12... O-O {[%clk 0:02:26.1]} 13. f4 {[%clk 0:02:47.2]} 13... exf4
{[%clk 0:02:22.8]} 14. Bxf4 {[%clk 0:02:46.6]} 14... Bxc4 {[%clk 0:02:20]} 15.
Nxc4 {[%clk 0:02:46.1]} 15... Ne6 {[%clk 0:02:19.9]} 16. Bg3 {[%clk 0:02:45.3]}
16... Rfd8 {[%clk 0:02:16.7]} 17. Rhe1 {[%clk 0:02:42.6]} 17... Kf7 {[%clk
0:02:15.5]} 18. Na5 {[%clk 0:02:33.5]} 18... Rxd1+ {[%clk 0:01:56]} 19. Kxd1
{[%clk 0:02:31.5]} 19... b6 {[%clk 0:01:50]} 20. Nc6 {[%clk 0:02:28.9]} 20...
Bf8 {[%clk 0:01:44.5]} 21. b4 {[%clk 0:02:24.7]} 21... a6 {[%clk 0:01:43]} 22.
a4 {[%clk 0:02:23.7]} 22... b5 {[%clk 0:01:41.4]} 23. a5 {[%clk 0:02:22.6]}
23... Re8 {[%clk 0:01:38.7]} 24. h4 {[%clk 0:02:12.5]} 24... g6 {[%clk
0:01:37.5]} 25. Kd2 {[%clk 0:02:04.4]} 25... h5 {[%clk 0:01:34.8]} 26. Kd3
{[%clk 0:02:03.6]} 26... Rc8 {[%clk 0:01:16.2]} 27. c4 {[%clk 0:02:02.2]} 27...
bxc4+ {[%clk 0:01:11.1]} 28. Kxc4 {[%clk 0:02:01.7]} 28... Bd6 {[%clk
0:01:06.9]} 29. Bf2 {[%clk 0:01:55.8]} 29... g5 {[%clk 0:01:00.6]} 30. hxg5
{[%clk 0:01:53.3]} 30... fxg5 {[%clk 0:00:58.2]} 31. Kb3 {[%clk 0:01:53.1]}
31... Nf4 {[%clk 0:00:52.9]} 32. g3 {[%clk 0:01:47.4]} 32... Nh3 {[%clk
0:00:52.8]} 33. Re2 {[%clk 0:01:47.7]} 33... Nxf2 {[%clk 0:00:49.3]} 34. Rxf2+
{[%clk 0:01:47.3]} 34... Ke6 {[%clk 0:00:46.1]} 35. Rf3 {[%clk 0:01:47.5]} 35...
g4 {[%clk 0:00:45.3]} 36. Rd3 {[%clk 0:01:45.4]} 36... Rf8 {[%clk 0:00:43.3]}
37. c4 {[%clk 0:01:43.1]} 37... Rf1 {[%clk 0:00:34.9]} 38. c5 {[%clk 0:01:41.6]}
38... Be5 {[%clk 0:00:28.3]} 39. Re3 {[%clk 0:01:40.4]} 39... Rf3 {[%clk
0:00:28.5]} 40. Nd4+ {[%clk 0:01:37.3]} 1-0

[Event "Early-Titled-Tuesday-Blitz-September-26-2023"]
[Site "Chess.com"]
[Date "2023.09.26"]
[Round "10"]
[White "Denis_Makhnyov"]
[Black "CSB7"]
[Result "1/2-1/2"]
[WhiteElo "2924"]
[BlackElo "2747"]
[TimeControl "180+1"]
[EndTime "9:54:58 PDT"]
[Termination "Game drawn by agreement"]

1. f4 {[%clk 0:03:00.9]} 1... Nh6 {[%clk 0:02:51]} 2. Nf3 {[%clk 0:02:57.8]}
2... g6 {[%clk 0:02:49.8]} 3. e4 {[%clk 0:02:52.7]} 3... d5 {[%clk 0:02:49.7]}
4. d3 {[%clk 0:02:53.1]} 4... dxe4 {[%clk 0:02:39]} 5. dxe4 {[%clk 0:02:54]}
5... Qxd1+ {[%clk 0:02:38.8]} 6. Kxd1 {[%clk 0:02:54.9]} 6... Nc6 {[%clk
0:02:35.8]} 7. h3 {[%clk 0:02:50.2]} 7... f5 {[%clk 0:02:06.2]} 8. e5 {[%clk
0:02:40.5]} 8... Be6 {[%clk 0:02:06.8]} 9. c3 {[%clk 0:02:05.8]} 9... O-O-O+
{[%clk 0:02:00.7]} 10. Kc2 {[%clk 0:02:06]} 10... Nf7 {[%clk 0:02:01.2]} 11.
Nbd2 {[%clk 0:02:01]} 11... g5 {[%clk 0:01:49.3]} 12. Bc4 {[%clk 0:01:02.2]}
12... Bxc4 {[%clk 0:01:36.3]} 13. Nxc4 {[%clk 0:01:03.1]} 13... e6 {[%clk
0:01:27.5]} 14. a4 {[%clk 0:00:43.1]} 14... gxf4 {[%clk 0:01:22.9]} 15. Bxf4
{[%clk 0:00:42.8]} 15... Rg8 {[%clk 0:01:17.7]} 16. g3 {[%clk 0:00:42.8]} 16...
Bh6 {[%clk 0:01:15.6]} 17. Rag1 {[%clk 0:00:27.5]} 17... Rg6 {[%clk 0:01:13.6]}
18. Bxh6 {[%clk 0:00:17]} 18... Nxh6 {[%clk 0:01:12.7]} 19. g4 {[%clk
0:00:17.4]} 19... fxg4 {[%clk 0:01:06.6]} 20. hxg4 {[%clk 0:00:17.4]} 20... Nxg4
{[%clk 0:01:06.4]} 21. Kb1 {[%clk 0:00:07.1]} 21... h5 {[%clk 0:00:59.7]} 22.
Rxh5 {[%clk 0:00:05.6]} 22... Ngxe5 {[%clk 0:00:57.1]} 23. Ncxe5 {[%clk
0:00:05.6]} 23... Rxg1+ {[%clk 0:00:56.4]} 24. Nxg1 {[%clk 0:00:05.8]} 24...
Nxe5 {[%clk 0:00:56.7]} 25. Rxe5 {[%clk 0:00:05.8]} 25... Rd1+ {[%clk
0:00:57.2]} 26. Kc2 {[%clk 0:00:06.6]} 26... Rxg1 {[%clk 0:00:57.6]} 27. Rxe6
{[%clk 0:00:07.5]} 1/2-1/2

[Event "Early-Titled-Tuesday-Blitz-September-26-2023"]
[Site "Chess.com"]
[Date "2023.09.26"]
[Round "10"]
[White "KaydenTroffChess"]
[Black "h4parah5"]
[Result "0-1"]
[WhiteElo "2779"]
[BlackElo "2961"]
[TimeControl "180+1"]
[EndTime "9:55:08 PDT"]
[Termination "h4parah5 won by resignation"]

1. d4 {[%clk 0:03:00.9]} 1... Nf6 {[%clk 0:02:59.6]} 2. Nf3 {[%clk 0:03:00.7]}
2... g6 {[%clk 0:02:58.9]} 3. Bg5 {[%clk 0:03:00.7]} 3... Bg7 {[%clk 0:02:58.8]}
4. Nbd2 {[%clk 0:03:00.8]} 4... O-O {[%clk 0:02:58.1]} 5. e3 {[%clk 0:03:01.4]}
5... d6 {[%clk 0:02:57.3]} 6. h4 {[%clk 0:03:00.4]} 6... Nc6 {[%clk 0:02:53.1]}
7. c3 {[%clk 0:02:58.5]} 7... Bf5 {[%clk 0:02:51.6]} 8. Bxf6 {[%clk 0:02:53.9]}
8... Bxf6 {[%clk 0:02:50.2]} 9. h5 {[%clk 0:02:54.6]} 9... e5 {[%clk 0:02:48]}
10. e4 {[%clk 0:02:52.6]} 10... exd4 {[%clk 0:02:45.6]} 11. cxd4 {[%clk
0:02:23.1]} 11... Re8 {[%clk 0:02:42.9]} 12. Be2 {[%clk 0:02:10.2]} 12... Bxe4
{[%clk 0:02:42.7]} 13. Nxe4 {[%clk 0:02:10.4]} 13... Rxe4 {[%clk 0:02:43.5]} 14.
Kf1 {[%clk 0:02:10.9]} 14... Nxd4 {[%clk 0:02:41.1]} 15. Bd3 {[%clk 0:02:08.9]}
15... Rf4 {[%clk 0:02:34.4]} 16. hxg6 {[%clk 0:02:04.7]} 16... hxg6 {[%clk
0:02:27.1]} 17. Qd2 {[%clk 0:02:04.4]} 17... Bg5 {[%clk 0:02:17.7]} 18. Nxd4
{[%clk 0:00:54.6]} 18... Rh4 {[%clk 0:02:10.3]} 19. Rxh4 {[%clk 0:00:42.7]}
19... Bxd2 {[%clk 0:02:09.7]} 20. Rh3 {[%clk 0:00:42.1]} 20... Qf6 {[%clk
0:02:06.8]} 21. Nf3 {[%clk 0:00:41.1]} 21... Bf4 {[%clk 0:02:01.7]} 22. g3
{[%clk 0:00:36.4]} 22... Be3 {[%clk 0:01:55.5]} 23. Kg2 {[%clk 0:00:33.8]} 23...
Qxb2 {[%clk 0:01:53.2]} 24. Rf1 {[%clk 0:00:34.2]} 24... Re8 {[%clk 0:01:50.5]}
25. Rh4 {[%clk 0:00:25.7]} 25... Bc5 {[%clk 0:01:46.2]} 26. Ng5 {[%clk
0:00:21.1]} 26... Re1 {[%clk 0:01:42.6]} 27. Ne4 {[%clk 0:00:14]} 27... Rxf1
{[%clk 0:01:40.5]} 28. Bxf1 {[%clk 0:00:14.9]} 28... Bd4 {[%clk 0:01:38.8]} 29.
Rf4 {[%clk 0:00:15.2]} 29... Be5 {[%clk 0:01:38.5]} 30. Rf3 {[%clk 0:00:15.3]}
30... Qxa2 {[%clk 0:01:38]} 31. Ng5 {[%clk 0:00:14.6]} 31... f6 {[%clk
0:01:36.7]} 32. Ne4 {[%clk 0:00:14.3]} 32... Kg7 {[%clk 0:01:32.5]} 33. Bd3
{[%clk 0:00:12.6]} 33... a5 {[%clk 0:01:31.5]} 34. g4 {[%clk 0:00:13.1]} 34...
a4 {[%clk 0:01:31.1]} 35. g5 {[%clk 0:00:13.2]} 35... f5 {[%clk 0:01:31.2]} 36.
Ng3 {[%clk 0:00:07.4]} 36... Qd2 {[%clk 0:01:25.4]} 37. Bc4 {[%clk 0:00:05.3]}
37... d5 {[%clk 0:01:22.8]} 38. Rd3 {[%clk 0:00:05.6]} 38... Qc2 {[%clk
0:01:17.9]} 39. Rxd5 {[%clk 0:00:04.1]} 39... Bxg3 {[%clk 0:01:18]} 40. Rd7+
{[%clk 0:00:04.3]} 40... Kf8 {[%clk 0:01:18.5]} 41. Rf7+ {[%clk 0:00:03]} 41...
Ke8 {[%clk 0:01:17.8]} 0-1

[Event "Early-Titled-Tuesday-Blitz-September-26-2023"]
[Site "Chess.com"]
[Date "2023.09.26"]
[Round "10"]
[White "Witty_Alien"]
[Black "Barmen_EV"]
[Result "0-1"]
[WhiteElo "2230"]
[BlackElo "2458"]
[TimeControl "180+1"]
[EndTime "9:55:18 PDT"]
[Termination "Barmen_EV won by checkmate"]

1. e4 {[%clk 0:03:00.9]} 1... e5 {[%clk 0:02:59.3]} 2. d4 {[%clk 0:02:59.2]}
2... exd4 {[%clk 0:02:59.3]} 3. c3 {[%clk 0:02:59.1]} 3... dxc3 {[%clk
0:03:00.2]} 4. Bc4 {[%clk 0:02:59.2]} 4... cxb2 {[%clk 0:03:01.1]} 5. Bxb2
{[%clk 0:02:59.5]} 5... d5 {[%clk 0:03:01.8]} 6. exd5 {[%clk 0:02:56.7]} 6...
Nf6 {[%clk 0:03:01.3]} 7. Nf3 {[%clk 0:02:55.4]} 7... Bb4+ {[%clk 0:02:59.3]} 8.
Nc3 {[%clk 0:02:54.6]} 8... O-O {[%clk 0:02:56.8]} 9. O-O {[%clk 0:02:53.8]}
9... Bg4 {[%clk 0:02:53.6]} 10. Qd4 {[%clk 0:02:43.5]} 10... Bxf3 {[%clk
0:02:46.4]} 11. gxf3 {[%clk 0:02:43.9]} 11... Nc6 {[%clk 0:02:47.1]} 12. Qf4
{[%clk 0:02:35.7]} 12... Bd6 {[%clk 0:02:47.1]} 13. Qh4 {[%clk 0:02:02.4]} 13...
Ne5 {[%clk 0:02:45.7]} 14. Be2 {[%clk 0:01:57.4]} 14... Nfd7 {[%clk 0:02:20.7]}
15. Qh3 {[%clk 0:01:47.1]} 15... Ng6 {[%clk 0:02:16.4]} 16. Bd3 {[%clk
0:01:37.4]} 16... Nde5 {[%clk 0:02:11.4]} 17. Bc2 {[%clk 0:01:22.7]} 17... h6
{[%clk 0:02:06.5]} 18. Kh1 {[%clk 0:01:11.9]} 18... Qf6 {[%clk 0:02:00.3]} 19.
Be4 {[%clk 0:00:28.4]} 19... Nf4 {[%clk 0:01:51.4]} 20. Qg3 {[%clk 0:00:23.3]}
20... Nc4 {[%clk 0:01:47.7]} 21. Nd1 {[%clk 0:00:04.1]} 21... Nxb2 {[%clk
0:01:46.1]} 22. Rg1 {[%clk 0:00:04.6]} 22... Ne2 {[%clk 0:01:39.1]} 23. Qg4
{[%clk 0:00:02.8]} 23... Nxg1 {[%clk 0:01:37]} 24. Nxb2 {[%clk 0:00:03.3]} 24...
Qxb2 {[%clk 0:01:28.8]} 25. Rxg1 {[%clk 0:00:03.4]} 25... Qe5 {[%clk 0:01:25.4]}
26. Rg2 {[%clk 0:00:03]} 26... f5 {[%clk 0:01:20.2]} 27. Bxf5 {[%clk 0:00:03.7]}
27... Rxf5 {[%clk 0:01:18.8]} 28. f4 {[%clk 0:00:04.4]} 28... Qf6 {[%clk
0:01:07.9]} 29. f3 {[%clk 0:00:02.2]} 29... Rxf4 {[%clk 0:01:06.6]} 30. Qh5
{[%clk 0:00:02.9]} 30... Rxf3 {[%clk 0:00:59.6]} 31. Re2 {[%clk 0:00:01.7]}
31... Rf1+ {[%clk 0:00:59.7]} 32. Kg2 {[%clk 0:00:02.1]} 32... Rf8 {[%clk
0:00:57.9]} 33. h4 {[%clk 0:00:01.6]} 33... Rf2+ {[%clk 0:00:57]} 34. Rxf2
{[%clk 0:00:02.1]} 34... Qxf2+ {[%clk 0:00:57.8]} 35. Kh1 {[%clk 0:00:01.7]}
35... Qf1# {[%clk 0:00:58]} 0-1